[Event "SixDays Budapest GM-C 09-2024"]
[Site "Budapest"]
[Date "2024.09.27"]
[Round "1"]
[White "Aczel, Gergely"]
[Black "Susilodinata, Andrean"]
[Result "1-0"]
[ECO "D12"]
[WhiteElo "2460"]
[BlackElo "2393"]
[Annotator "ChessBase"]
[PlyCount "96"]
[EventDate "2024.09.24"]
[EventType "tourn"]
[EventCountry "HUN"]
[SourceTitle "playchess.com"]
[Source "ChessBase"]
[SourceQuality "1"]
[TimeControl "5400+30"]

1. d4 {[%emt 0:02:38]} d5 {[%emt 0:00:05]} 2. c4 {[%emt 0:00:03]} c6 {[%emt 0:00:05]} 3. Nf3 {[%emt 0:00:09]} Nf6 {[%emt 0:00:02]} 4. e3 {[%emt 0:00:06]} Bf5 {[%emt 0:00:03]} 5. Nc3 {[%emt 0:00:09]} e6 {[%emt 0:00:04]} 6. Nh4 {[%emt 0:00:10]} Be4 {[%emt 0:00:05]} 7. f3 {[%emt 0:03:21]} Bg6 {[%emt 0:00:02]} 8. Qb3 {[%emt 0:02:05]} Qc7 {[%emt 0:00:05]} 9. Bd2 {[%emt 0:05:50]} Be7 {[%emt 0:00:06]} 10. cxd5 {[%emt 0:01:05]} Nxd5 {[%emt 0:00:26]} 11. Nxg6 {[%emt 0:00:23]} hxg6 {[%emt 0:00:03]} 12. O-O-O {[%emt 0:00:32]} Nxc3 {[%emt 0:03:28]} 13. Bxc3 {[%emt 0:00:17]} a5 {[%emt 0:00:04]} 14. g3 {[%emt 0:07:00]} b5 {[%emt 0:12:39]} 15. Bd2 {[%emt 0:17:21]} a4 {[%emt 0:02:30]} 16. Qd3 {[%emt 0:00:08]} a3 {[%emt 0:05:07]} 17. b3 {[%emt 0:00:15]} Na6 {[%emt 0:00:05]} 18. Kb1 {[%emt 0:00:28]} Nb4 {[%emt 0:00:07]} 19. Bxb4 {[%emt 0:06:28]} Bxb4 {[%emt 0:00:02]} 20. Rc1 {[%emt 0:00:12]} Rc8 {[%emt 0:42:04]} 21. Qe4 {[%emt 0:01:07]} Qb6 {[%emt 0:01:19]} 22. d5 {[%emt 0:21:31]} Bd2 {[%emt 0:00:21]} 23. Rc2 {[%emt 0:06:13]} Bxe3 {[%emt 0:03:10]} 24. dxe6 {[%emt 0:00:31]} f5 {[%emt 0:13:21]} 25. Qe5 {[%emt 0:00:13]} Qd4 {[%emt 0:00:16]} 26. Qxd4 {[%emt 0:00:24]} Bxd4 {[%emt 0:00:02]} 27. Bxb5 {[%emt 0:01:05]} Ke7 {[%emt 0:00:07]} 28. Bxc6 {[%emt 0:11:12]} Kxe6 {[%emt 0:00:04]} 29. Rd1 {[%emt 0:00:06]} Rcd8 {[%emt 0:00:40]} 30. Rcd2 {[%emt 0:04:36]} Bb6 {[%emt 0:02:23]} 31. Bd7+ {[%emt 0:00:11]} Kf7 {[%emt 0:01:12]} 32. b4 {[%emt 0:00:34]} Rb8 {[%emt 0:01:55]} 33. Kc2 {[%emt 0:00:15]} Be3 {[%emt 0:01:35]} 34. Re2 {[%emt 0:01:06]} f4 {[%emt 0:00:05]} 35. gxf4 {[%emt 0:01:28]} Bxf4 {[%emt 0:00:16]} 36. Kb3 {[%emt 0:00:08]} Rb6 {[%emt 0:01:21]} 37. Rd4 {[%emt 0:02:13]} Bc1 {[%emt 0:02:38]} 38. b5 {[%emt 0:01:00]} Rh5 {[%emt 0:00:52]} 39. Bc6 {[%emt 0:00:46]} Rc5 {[%emt 0:02:07]} 40. Rc4 {[%emt 0:00:39]} Rcxb5+ {[%emt 0:02:28]} 41. Bxb5 {[%emt 0:00:11]} Rxb5+ {[%emt 0:00:04]} 42. Ka4 {[%emt 0:01:51]} Rb2 {[%emt 0:00:01]} 43. Rxb2 {[%emt 0:01:27]} Bxb2 {[%emt 0:00:13]} 44. Kb3 {[%emt 0:00:54]} Ke6 {[%emt 0:00:05]} 45. Rc2 {[%emt 0:00:22]} Kd5 {[%emt 0:00:32]} 46. Rxb2 {[%emt 0:01:26]} axb2 {[%emt 0:00:02]} 47. Kxb2 {[%emt 0:00:06]} Kd4 {[%emt 0:00:06]} 48. Kb3 {[%emt 0:00:18]} Kd5 1-0

[Event "SixDays Budapest GM-C 09-2024"]
[Site "Budapest"]
[Date "2024.09.27"]
[Round "1"]
[White "Mayank Chakraborty"]
[Black "Sardana, Rishi"]
[Result "1-0"]
[ECO "C20"]
[WhiteElo "2431"]
[BlackElo "2477"]
[Annotator "ChessBase"]
[PlyCount "107"]
[EventDate "2024.09.24"]
[EventType "tourn"]
[EventCountry "HUN"]
[SourceTitle "playchess.com"]
[Source "ChessBase"]
[SourceQuality "1"]
[TimeControl "5400+30"]

1. e4 {[%emt 0:00:01]} e5 {[%emt 0:00:08]} 2. Ne2 {[%emt 0:00:02]} Nf6 {[%emt 0:00:17]} 3. d4 {[%emt 0:00:02]} exd4 {[%emt 0:08:40]} 4. e5 {[%emt 0:00:01]} Ne4 {[%emt 0:01:37]} 5. Qxd4 {[%emt 0:00:05]} Nc5 {[%emt 0:03:53]} 6. Qe3 {[%emt 0:03:36]} Be7 {[%emt 0:15:53]} 7. Qg3 {[%emt 0:02:58]} Ne6 {[%emt 0:02:55]} 8. Nbc3 {[%emt 0:04:07]} d6 {[%emt 0:02:16]} 9. Nf4 {[%emt 0:11:29]} O-O {[%emt 0:02:07]} 10. Nxe6 {[%emt 0:02:03]} fxe6 {[%emt 0:00:06]} 11. Bh6 {[%emt 0:01:29]} Rf7 {[%emt 0:01:17]} 12. O-O-O {[%emt 0:01:14]} d5 {[%emt 0:18:09]} 13. h4 {[%emt 0:13:27]} c5 {[%emt 0:00:46]} 14. Bg5 {[%emt 0:16:33]} Nc6 {[%emt 0:01:06]} 15. Kb1 {[%emt 0:01:44]} Nd4 {[%emt 0:02:17]} 16. Ne2 {[%emt 0:08:02]} Nf5 {[%emt 0:03:39]} 17. Qh2 {[%emt 0:03:01]} Bxg5 {[%emt 0:11:41]} 18. hxg5 {[%emt 0:00:14]} g6 {[%emt 0:00:04]} 19. g4 {[%emt 0:06:29]} Ne7 {[%emt 0:00:05]} 20. f4 {[%emt 0:01:43]} Qf8 {[%emt 0:01:26]} 21. Bg2 {[%emt 0:01:25]} b5 {[%emt 0:04:06]} 22. f5 {[%emt 0:01:58]} gxf5 {[%emt 0:06:35]} 23. Nf4 {[%emt 0:00:45]} Qg7 {[%emt 0:05:45]} 24. Nh5 {[%emt 0:00:32]} Qxg5 {[%emt 0:01:40]} 25. Nf6+ {[%emt 0:00:34]} Kf8 {[%emt 0:00:07]} 26. Nxh7+ {[%emt 0:01:18]} Rxh7 {[%emt 0:00:06]} 27. Qxh7 {[%emt 0:00:03]} Qg7 {[%emt 0:00:07]} 28. gxf5 {[%emt 0:02:38]} Nxf5 {[%emt 0:00:18]} 29. Qh3 {[%emt 0:00:53]} Qxe5 {[%emt 0:00:23]} 30. Qa3 {[%emt 0:03:06]} b4 {[%emt 0:00:49]} 31. Qa5 {[%emt 0:00:26]} Qd6 {[%emt 0:00:07]} 32. Rh8+ {[%emt 0:02:00]} Kg7 {[%emt 0:00:05]} 33. Rdh1 {[%emt 0:00:23]} Kf6 {[%emt 0:00:52]} 34. Bh3 {[%emt 0:04:02]} Ng3 {[%emt 0:00:12]} 35. Rg1 {[%emt 0:00:39]} Ne4 {[%emt 0:00:11]} 36. Bxe6 {[%emt 0:01:35]} Bxe6 {[%emt 0:01:40]} 37. Rxa8 {[%emt 0:00:05]} Qb6 {[%emt 0:03:01]} 38. Rxa7 {[%emt 0:00:54]} Qxa5 {[%emt 0:00:25]} 39. Rxa5 {[%emt 0:00:01]} Ke5 {[%emt 0:00:09]} 40. Re1 {[%emt 0:00:31]} Kd4 {[%emt 0:00:09]} 41. Kc1 {[%emt 0:00:52]} Bf5 {[%emt 0:00:14]} 42. Rd1+ {[%emt 0:00:44]} Ke5 {[%emt 0:00:06]} 43. a3 {[%emt 0:00:13]} bxa3 {[%emt 0:00:11]} 44. Rxa3 {[%emt 0:00:11]} Be6 {[%emt 0:00:40]} 45. Ra5 {[%emt 0:00:19]} Bf7 {[%emt 0:00:13]} 46. b3 {[%emt 0:00:27]} Be6 {[%emt 0:00:20]} 47. Kb2 {[%emt 0:00:09]} Bf7 {[%emt 0:00:21]} 48. Rf1 {[%emt 0:00:29]} Be6 {[%emt 0:00:06]} 49. Rf8 {[%emt 0:00:25]} Bh3 {[%emt 0:00:43]} 50. Rd8 {[%emt 0:00:44]} Bf5 {[%emt 0:00:26]} 51. b4 {[%emt 0:00:37]} Nd6 {[%emt 0:02:02]} 52. Rxc5 {[%emt 0:00:28]} Be6 {[%emt 0:00:10]} 53. Rxd6 {[%emt 0:00:24]} Kxd6 {[%emt 0:00:09]} 54. Kc3 {[%emt 0:00:02]} 1-0

[Event "SixDays Budapest GM-C 09-2024"]
[Site "Budapest"]
[Date "2024.09.27"]
[Round "1"]
[White "Gatineau, Yovann"]
[Black "Gretarsson, Helgi Ass"]
[Result "1/2-1/2"]
[ECO "D10"]
[WhiteElo "2400"]
[BlackElo "2450"]
[Annotator "ChessBase"]
[PlyCount "35"]
[EventDate "2024.09.24"]
[EventType "tourn"]
[EventCountry "HUN"]
[SourceTitle "playchess.com"]
[Source "ChessBase"]
[SourceQuality "1"]
[TimeControl "5400+30"]

1. d4 {[%emt 0:04:37]} d5 {[%emt 0:00:09]} 2. c4 {[%emt 0:00:15]} c6 {[%emt 0:00:05]} 3. cxd5 {[%emt 0:01:01]} cxd5 {[%emt 0:00:06]} 4. Bf4 {[%emt 0:00:19]} Nc6 {[%emt 0:00:29]} 5. e3 {[%emt 0:00:41]} Nf6 {[%emt 0:02:09]} 6. Nc3 {[%emt 0:00:45]} a6 {[%emt 0:00:27]} 7. Qb3 {[%emt 0:00:10]} Na5 {[%emt 0:01:59]} 8. Qc2 {[%emt 0:01:34]} Bg4 {[%emt 0:02:17]} 9. Bd3 {[%emt 0:00:45]} e6 {[%emt 0:00:59]} 10. Nge2 {[%emt 0:01:03]} Bh5 {[%emt 0:18:15]} 11. Rc1 {[%emt 0:14:32]} Rc8 {[%emt 0:11:37]} 12. Bg5 {[%emt 0:06:53]} Be7 {[%emt 0:01:33]} 13. Nf4 {[%emt 0:01:54]} Bg6 {[%emt 0:00:07]} 14. Nxg6 {[%emt 0:02:35]} hxg6 {[%emt 0:00:05]} 15. h3 {[%emt 0:05:05]} b5 {[%emt 0:12:42]} 16. O-O {[%emt 0:05:27]} O-O {[%emt 0:07:33]} 17. Qe2 {[%emt 0:02:45]} Qd7 {[%emt 0:00:09]} 18. Rc2 {[%emt 0:10:35]} 1/2-1/2

[Event "SixDays Budapest GM-C 09-2024"]
[Site "Budapest"]
[Date "2024.09.27"]
[Round "1"]
[White "Zia, Tahsin Tajwar"]
[Black "Palczert, Matyas"]
[Result "1/2-1/2"]
[ECO "E49"]
[WhiteElo "2255"]
[BlackElo "2345"]
[Annotator "ChessBase"]
[PlyCount "134"]
[EventDate "2024.09.24"]
[EventType "tourn"]
[EventCountry "HUN"]
[SourceTitle "playchess.com"]
[Source "ChessBase"]
[SourceQuality "1"]
[TimeControl "5400+30"]

1. d4 {[%emt 0:00:04]} Nf6 {[%emt 0:00:18]} 2. c4 {[%emt 0:00:05]} e6 {[%emt 0:00:07]} 3. Nc3 {[%emt 0:00:31]} Bb4 {[%emt 0:00:13]} 4. e3 {[%emt 0:00:07]} O-O {[%emt 0:00:12]} 5. Bd3 {[%emt 0:00:06]} d5 {[%emt 0:00:11]} 6. a3 {[%emt 0:00:15]} Bxc3+ {[%emt 0:00:18]} 7. bxc3 {[%emt 0:00:08]} dxc4 {[%emt 0:00:19]} 8. Bxc4 {[%emt 0:00:02]} c5 {[%emt 0:00:20]} 9. Ne2 {[%emt 0:00:06]} Qc7 {[%emt 0:01:15]} 10. Bd3 {[%emt 0:00:07]} b6 {[%emt 0:07:21]} 11. O-O {[%emt 0:01:21]} Bb7 {[%emt 0:00:23]} 12. Ng3 {[%emt 0:05:06]} Rd8 {[%emt 0:03:22]} 13. f4 {[%emt 0:01:06]} Ba6 {[%emt 0:08:17]} 14. Bxa6 {[%emt 0:41:00]} Nxa6 {[%emt 0:00:08]} 15. Qe2 {[%emt 0:00:07]} Nb8 {[%emt 0:05:00]} 16. Bb2 {[%emt 0:01:06]} Nc6 {[%emt 0:04:50]} 17. Rac1 {[%emt 0:07:58]} Qe7 {[%emt 0:16:31]} 18. Rcd1 {[%emt 0:04:10]} Rac8 {[%emt 0:04:00]} 19. e4 Na5 20. e5 {[%emt 0:05:29]} Nd5 {[%emt 0:07:37]} 21. c4 {[%emt 0:06:49]} Nxc4 {[%emt 0:00:38]} 22. Qxc4 {[%emt 0:00:07]} Ne3 {[%emt 0:00:18]} 23. Qd3 {[%emt 0:06:27]} cxd4 {[%emt 0:01:48]} 24. Bxd4 {[%emt 0:00:46]} Nxf1 {[%emt 0:01:13]} 25. Ne4 {[%emt 0:07:31]} Nd2 {[%emt 0:09:36]} 26. Nxd2 {[%emt 0:07:26]} Qc7 {[%emt 0:09:06]} 27. Ne4 {[%emt 0:01:38]} Qc4 {[%emt 0:03:30]} 28. Nd6 {[%emt 0:00:59]} Qxd3 {[%emt 0:00:08]} 29. Rxd3 {[%emt 0:00:01]} Rc2 {[%emt 0:00:21]} 30. g3 {[%emt 0:02:22]} Rd7 {[%emt 0:01:21]} 31. Bf2 {[%emt 0:00:40]} h6 {[%emt 0:00:43]} 32. Kg2 {[%emt 0:00:13]} Rdc7 {[%emt 0:03:09]} 33. Nb5 {[%emt 0:01:11]} R7c5 {[%emt 0:01:20]} 34. a4 {[%emt 0:01:28]} R5c4 {[%emt 0:01:22]} 35. Ra3 {[%emt 0:00:39]} Rb4 {[%emt 0:06:49]} 36. Nxa7 {[%emt 0:00:21]} Rbb2 {[%emt 0:00:06]} 37. Rf3 {[%emt 0:00:03]} Ra2 {[%emt 0:00:17]} 38. Nb5 {[%emt 0:00:51]} Rxa4 {[%emt 0:00:19]} 39. Nd6 {[%emt 0:00:53]} Raa2 {[%emt 0:00:59]} 40. g4 {[%emt 0:00:29]} Rab2 {[%emt 0:00:28]} 41. f5 {[%emt 0:00:25]} b5 {[%emt 0:00:55]} 42. f6 {[%emt 0:00:15]} b4 {[%emt 0:01:59]} 43. fxg7 {[%emt 0:00:05]} b3 {[%emt 0:00:46]} 44. Ne4 {[%emt 0:00:34]} Re2 {[%emt 0:00:39]} 45. Nc3 {[%emt 0:00:46]} Rxe5 {[%emt 0:00:34]} 46. Kg3 {[%emt 0:00:01]} Rd2 {[%emt 0:02:29]} 47. Nb1 {[%emt 0:00:20]} Rd8 {[%emt 0:01:20]} 48. Rxb3 {[%emt 0:00:05]} Red5 {[%emt 0:00:24]} 49. Re3 {[%emt 0:01:10]} Rd3 {[%emt 0:00:20]} 50. Kf3 {[%emt 0:00:14]} Kxg7 {[%emt 0:00:11]} 51. Nc3 {[%emt 0:00:10]} f5 {[%emt 0:00:42]} 52. gxf5 {[%emt 0:00:48]} exf5 {[%emt 0:00:07]} 53. Ne2 {[%emt 0:00:16]} Rxe3+ {[%emt 0:00:12]} 54. Bxe3 {[%emt 0:00:05]} Re8 {[%emt 0:00:31]} 55. Ng3 {[%emt 0:00:23]} Kg6 {[%emt 0:01:45]} 56. h4 {[%emt 0:00:06]} h5 {[%emt 0:00:44]} 57. Ne2 {[%emt 0:00:07]} Re4 {[%emt 0:00:34]} 58. Bg5 {[%emt 0:00:17]} Rg4 {[%emt 0:00:33]} 59. Nf4+ {[%emt 0:00:10]} Kf7 {[%emt 0:00:16]} 60. Nxh5 {[%emt 0:00:06]} Ke6 {[%emt 0:00:30]} 61. Nf4+ {[%emt 0:01:02]} Kf7 {[%emt 0:00:25]} 62. Ke3 {[%emt 0:00:43]} Rg1 {[%emt 0:00:07]} 63. Ne2 {[%emt 0:00:35]} Rg4 {[%emt 0:00:08]} 64. Kf3 {[%emt 0:00:43]} Kg6 {[%emt 0:00:26]} 65. Nf4+ {[%emt 0:01:01]} Kf7 {[%emt 0:00:09]} 66. Kf2 {[%emt 0:00:22]} Kg7 {[%emt 0:00:29]} 67. Kf3 {[%emt 0:00:11]} Kf7 1/2-1/2

[Event "SixDays Budapest GM-C 09-2024"]
[Site "Budapest"]
[Date "2024.09.27"]
[Round "1"]
[White "Grebennikov, Nikolai A."]
[Black "Grover, Sahaj"]
[Result "1-0"]
[ECO "D31"]
[WhiteElo "2220"]
[BlackElo "2496"]
[Annotator "ChessBase"]
[PlyCount "73"]
[EventDate "2024.09.24"]
[EventType "tourn"]
[EventCountry "HUN"]
[SourceTitle "playchess.com"]
[Source "ChessBase"]
[SourceQuality "1"]
[TimeControl "5400+30"]

1. d4 {[%emt 0:10:54]} d5 {[%emt 0:00:12]} 2. c4 {[%emt 0:00:08]} e6 {[%emt 0:00:06]} 3. Nc3 {[%emt 0:00:04]} Bb4 {[%emt 0:00:07]} 4. e3 {[%emt 0:00:09]} Nf6 {[%emt 0:00:09]} 5. Nge2 {[%emt 0:00:04]} O-O {[%emt 0:00:20]} 6. a3 {[%emt 0:05:15]} Be7 {[%emt 0:00:39]} 7. Ng3 {[%emt 0:00:11]} b6 8. cxd5 {[%emt 0:00:08]} exd5 {[%emt 0:04:17]} 9. b4 {[%emt 0:00:11]} c5 {[%emt 0:00:27]} 10. b5 {[%emt 0:06:25]} a6 {[%emt 0:09:38]} 11. a4 {[%emt 0:08:48]} h5 {[%emt 0:16:16]} 12. Nxh5 {[%emt 0:09:06]} Ne4 {[%emt 0:05:35]} 13. Bb2 {[%emt 0:03:41]} g6 {[%emt 0:01:55]} 14. Nxe4 {[%emt 0:09:52]} dxe4 {[%emt 0:00:07]} 15. Bc4 {[%emt 0:05:46]} cxd4 {[%emt 0:03:34]} 16. Nf4 {[%emt 0:04:32]} Bf6 {[%emt 0:08:26]} 17. Nd5 {[%emt 0:01:14]} Be5 {[%emt 0:10:34]} 18. h4 {[%emt 0:03:30]} Be6 {[%emt 0:02:24]} 19. Qb3 {[%emt 0:02:32]} axb5 {[%emt 0:01:17]} 20. axb5 {[%emt 0:00:20]} Rxa1+ {[%emt 0:00:05]} 21. Bxa1 {[%emt 0:00:05]} Bxd5 {[%emt 0:00:06]} 22. Bxd5 {[%emt 0:00:05]} Qf6 {[%emt 0:00:02]} 23. Bxd4 {[%emt 0:06:55]} Bxd4 {[%emt 0:00:08]} 24. exd4 {[%emt 0:00:02]} Qxd4 {[%emt 0:02:00]} 25. O-O {[%emt 0:00:28]} Nd7 {[%emt 0:00:09]} 26. Rd1 {[%emt 0:00:22]} Qf6 {[%emt 0:00:13]} 27. Bxe4 {[%emt 0:02:53]} Nc5 {[%emt 0:00:05]} 28. Qd5 {[%emt 0:00:24]} Re8 {[%emt 0:00:08]} 29. Bb1 {[%emt 0:00:53]} Re2 {[%emt 0:00:37]} 30. Rf1 {[%emt 0:02:22]} Kg7 {[%emt 0:01:18]} 31. g3 {[%emt 0:01:40]} Qb2 {[%emt 0:00:11]} 32. h5 {[%emt 0:02:42]} Re5 {[%emt 0:01:18]} 33. h6+ {[%emt 0:00:02]} Kxh6 {[%emt 0:06:06]} 34. Qxf7 {[%emt 0:00:05]} Rg5 {[%emt 0:00:05]} 35. Kg2 {[%emt 0:00:19]} Qg7 {[%emt 0:00:07]} 36. Rh1+ {[%emt 0:02:36]} Rh5 {[%emt 0:00:01]} 37. Qf4+ {[%emt 0:00:37]} 1-0

[Event "SixDays Budapest GM-C 09-2024"]
[Site "Budapest"]
[Date "2024.09.24"]
[Round "1.1"]
[White "Zia, Tahsin Tajwar"]
[Black "Aczel, Gergely"]
[Result "1/2-1/2"]
[ECO "E01"]
[WhiteElo "2255"]
[BlackElo "2460"]
[Annotator "RC"]
[PlyCount "91"]
[EventDate "2024.09.24"]
[EventType "tourn"]
[EventCountry "HUN"]
[SourceTitle "playchess.com"]
[Source "ChessBase"]
[SourceQuality "1"]
[TimeControl "5400+30"]

1. d4 {[%emt 0:00:34]} Nf6 {[%emt 0:00:17]} 2. c4 {[%emt 0:00:08]} e6 {[%emt 0:00:11]} 3. g3 {[%emt 0:00:05]} d5 {[%emt 0:01:27]} 4. Bg2 {[%emt 0:00:06]} Bb4+ {[%emt 0:00:10]} 5. Bd2 {[%emt 0:00:16]} a5 {[%emt 0:00:51]} 6. Nf3 {[%emt 0:00:10]} O-O {[%emt 0:00:13]} 7. Qc1 {[%emt 0:01:36]} c6 {[%emt 0:02:37]} 8. O-O {[%emt 0:00:33]} Nbd7 {[%emt 0:00:41]} 9. Rd1 {[%emt 0:03:47]} b6 {[%emt 0:05:18]} 10. Bxb4 {[%emt 0:15:40]} axb4 {[%emt 0:00:05]} 11. cxd5 {[%emt 0:00:04]} cxd5 {[%emt 0:00:07]} 12. Ne5 {[%emt 0:00:30]} Qe7 {[%emt 0:34:50]} 13. Qc7 {[%emt 0:34:37]} Re8 {[%emt 0:00:17]} 14. Nd2 {[%emt 0:10:42]} Ba6 {[%emt 0:05:19]} 15. Nxd7 {[%emt 0:00:56]} Nxd7 {[%emt 0:01:24]} 16. e4 {[%emt 0:01:08]} Rac8 {[%emt 0:05:08]} 17. Qa7 {[%emt 0:04:15]} Ra8 {[%emt 0:19:29]} 18. Qc7 {[%emt 0:00:23]} dxe4 {[%emt 0:07:15]} 19. Bxe4 {[%emt 0:07:23]} Rac8 {[%emt 0:02:40]} 20. Qa7 {[%emt 0:01:40]} Bb5 {[%emt 0:00:36]} 21. a4 {[%emt 0:07:38]} bxa3 {[%emt 0:04:41]} 22. Qxa3 {[%emt 0:00:30]} Nf6 {[%emt 0:00:46]} 23. Bf3 {[%emt 0:03:31]} h6 {[%emt 0:01:00]} 24. Qb3 {[%emt 0:02:19]} Qd7 {[%emt 0:00:17]} 25. Ne4 {[%emt 0:01:05]} Nd5 {[%emt 0:00:40]} 26. Nc3 {[%emt 0:01:04]} Bc4 {[%emt 0:00:16]} 27. Qa3 {[%emt 0:00:38]} Red8 {[%emt 0:01:07]} 28. Kg2 {[%emt 0:01:32]} b5 {[%emt 0:00:41]} 29. Ne4 {[%emt 0:00:55]} b4 {[%emt 0:00:44]} 30. Qa7 {[%emt 0:00:01]} Ne7 {[%emt 0:05:11]} 31. Rdc1 {[%emt 0:01:31]} Qxa7 {[%emt 0:00:28]} 32. Rxa7 {[%emt 0:00:02]} Nf5 {[%emt 0:01:06]} 33. Rb7 {[%emt 0:00:33]} b3 {[%emt 0:00:34]} 34. Nd2 {[%emt 0:00:51]} Bd5 {[%emt 0:00:32]} 35. Rxc8 {[%emt 0:00:06]} Rxc8 {[%emt 0:00:30]} 36. Bxd5 {[%emt 0:00:07]} exd5 {[%emt 0:00:04]} 37. Rxb3 {[%emt 0:00:44]} Rc2 {[%emt 0:00:40]} 38. Nf3 {[%emt 0:00:02]} g5 {[%emt 0:00:46]} 39. h3 {[%emt 0:00:46]} Nd6 {[%emt 0:00:02]} 40. Ne1 {[%emt 0:00:44]} Rd2 {[%emt 0:00:15]} 41. Nf3 {[%emt 0:00:02]} Re2 {[%emt 0:00:38]} 42. Kf1 {[%emt 0:00:27]} Rc2 {[%emt 0:00:10]} 43. Ne1 {[%emt 0:00:10]} Rd2 {[%emt 0:00:08]} 44. Nf3 {[%emt 0:00:48]} Rc2 {[%emt 0:00:05]} 45. Ne1 {[%emt 0:00:46]} Rd2 {[%emt 0:01:15]} 46. Nf3 {[%emt 0:01:04]} 1/2-1/2

[Event "SixDays Budapest GM-C 09-2024"]
[Site "Budapest"]
[Date "2024.09.24"]
[Round "1.2"]
[White "Grebennikov, Nikolai A."]
[Black "Mayank Chakraborty"]
[Result "0-1"]
[ECO "D30"]
[WhiteElo "2220"]
[BlackElo "2431"]
[Annotator "RC"]
[PlyCount "82"]
[EventDate "2024.09.24"]
[EventType "tourn"]
[EventCountry "HUN"]
[SourceTitle "playchess.com"]
[Source "ChessBase"]
[SourceQuality "1"]
[TimeControl "5400+30"]

1. d4 {[%emt 0:00:09]} Nf6 {[%emt 0:00:06]} 2. c4 {[%emt 0:00:15]} e6 {[%emt 0:00:02]} 3. Nf3 {[%emt 0:00:51]} d5 {[%emt 0:00:03]} 4. Bg5 {[%emt 0:01:27]} h6 {[%emt 0:00:42]} 5. Bh4 {[%emt 0:06:32]} Bb4+ {[%emt 0:01:10]} 6. Nc3 {[%emt 0:00:14]} dxc4 {[%emt 0:00:27]} 7. Qa4+ {[%emt 0:03:19]} Nc6 {[%emt 0:00:08]} 8. a3 {[%emt 0:08:52]} Bxc3+ {[%emt 0:04:37]} 9. bxc3 {[%emt 0:00:01]} Qd5 {[%emt 0:01:05]} 10. Nd2 {[%emt 0:06:16]} b5 {[%emt 0:07:54]} 11. Qc2 {[%emt 0:00:48]} Bb7 {[%emt 0:01:00]} 12. e4 {[%emt 0:00:54]} Qd7 {[%emt 0:03:49]} 13. a4 {[%emt 0:13:13]} b4 {[%emt 0:06:51]} 14. Bxf6 {[%emt 0:11:53]} gxf6 {[%emt 0:00:55]} 15. Bxc4 {[%emt 0:00:36]} bxc3 {[%emt 0:00:36]} 16. Nb3 {[%emt 0:04:22]} Nxd4 {[%emt 0:01:39]} 17. Qxc3 {[%emt 0:00:02]} Nxb3 {[%emt 0:01:12]} 18. Qxb3 {[%emt 0:12:51]} Bxe4 {[%emt 0:17:46]} 19. O-O {[%emt 0:01:20]} Rg8 {[%emt 0:11:04]} 20. f3 {[%emt 0:00:30]} Bd5 {[%emt 0:01:16]} 21. Rad1 {[%emt 0:01:42]} c6 {[%emt 0:00:17]} 22. Rfe1 {[%emt 0:04:19]} Kf8 {[%emt 0:07:08]} 23. Qe3 {[%emt 0:01:00]} Rg6 {[%emt 0:02:07]} 24. Bd3 {[%emt 0:03:40]} f5 {[%emt 0:00:20]} 25. a5 {[%emt 0:01:08]} Qd8 {[%emt 0:02:38]} 26. a6 {[%emt 0:02:27]} Qb6 {[%emt 0:01:59]} 27. Rb1 {[%emt 0:00:15]} Qxe3+ {[%emt 0:00:06]} 28. Rxe3 {[%emt 0:00:02]} Rg8 {[%emt 0:00:51]} 29. Kf2 {[%emt 0:03:29]} Kg7 {[%emt 0:01:28]} 30. Re2 {[%emt 0:00:19]} Rgb8 {[%emt 0:01:01]} 31. Reb2 {[%emt 0:00:02]} Rxb2+ {[%emt 0:00:54]} 32. Rxb2 {[%emt 0:00:01]} c5 {[%emt 0:00:14]} 33. Ke3 {[%emt 0:02:18]} Rc8 {[%emt 0:00:43]} 34. g4 {[%emt 0:01:41]} c4 {[%emt 0:01:09]} 35. Rc2 {[%emt 0:00:46]} Rc6 {[%emt 0:00:22]} 36. Bf1 {[%emt 0:05:07]} fxg4 {[%emt 0:00:06]} 37. fxg4 {[%emt 0:00:07]} Rxa6 {[%emt 0:00:09]} 38. Bxc4 {[%emt 0:00:45]} Ra3+ {[%emt 0:00:50]} 39. Bd3 e5 {[%emt 0:01:00]} 40. Ke2 {[%emt 0:02:23]} Be6 {[%emt 0:00:56]} 41. h3 {[%emt 0:02:44]} h5 {[%emt 0:00:07]} 0-1